bitfinex/quotes_ETHUSD_20251031
["timestamp","ask_amount","ask_price","bid_price","bid_amount"]
[1761881580537,0.01,3828.7,3828.6,2.6119208]
[1761881580736,0.01,3828.7,3828.6,3.08924]
[1761881581120,0.3131,3828.7,3828.6,2.6119208]
[1761881582141,0.01,3828.7,3828.6,2.6119208]
[1761881583638,0.01,3828.7,3828.6,3.0631208]
[1761881584840,1e-08,3828.7,3828.6,4.11595338]
[1761881585109,1e-08,3828.7,3828.6,4.08983418]
[1761881585713,1e-08,3828.7,3828.6,3.63063418]
[1761881585916,1e-08,3828.7,3828.6,3.0631208]
[1761881586109,0.17920001,3828.7,3828.6,2.6119208]
[1761881586329,3.35258201,3828.7,3828.6,2.6119208]
[1761881586524,2.35448201,3828.7,3828.6,2.6119208]
[1761881586816,2.07638201,3828.7,3828.6,2.6119208]
[1761881587213,2.25748201,3828.7,3828.6,2.6119208]
[1761881587726,9.48757501,3828.7,3828.6,2.6119208]
[1761881587965,10.44852251,3828.7,3828.6,2.6119208]
[1761881588164,1.39968,3828.5,3828.4,2.61205725]
[1761881588349,10.344655,3828.5,3828.4,2.61205725]
[1761881588673,1.77238,3828.5,3828.4,2.61205725]
[1761881588876,10.713655,3828.5,3828.0,2.61228088]
[1761881589075,9.071675,3828.2,3828.1,2.61226195]
[1761881589599,2.396217,3828.2,3828.1,2.61226195]
[1761881589759,2.207316,3828.2,3828.1,2.61226195]
[1761881589948,0.1304,3828.2,3828.1,2.61226195]
[1761881590280,0.1304,3828.2,3828.1,3.06346195]
[1761881590477,1.39968,3828.5,3828.4,2.61205725]
[1761881590665,3.580936,3828.5,3828.4,2.61205725]
[1761881590866,1.39968,3828.5,3828.4,2.61205725]
[1761881591482,1.39968,3828.5,3828.4,3.06325725]
[1761881592295,0.00200001,3828.7,3828.6,2.6119208]
[1761881592476,0.00200001,3828.7,3828.6,3.0631208]
[1761881592641,0.00200001,3828.7,3828.6,2.6119208]
[1761881593156,9.12247501,3828.7,3828.6,2.6119208]
[1761881593357,9.48957501,3828.7,3828.6,2.6119208]
[1761881593786,5.85854501,3828.7,3828.6,2.6119208]
[1761881594081,9.12247501,3828.7,3828.6,2.6119208]
[1761881594250,9.48957501,3828.7,3828.6,2.6119208]
[1761881595597,9.12247501,3828.7,3828.6,2.6119208]
[1761881598063,0.18120001,3828.7,3828.6,2.6119208]
[1761881598293,9.12247501,3828.7,3828.6,2.6119208]
[1761881599867,10.88925501,3828.7,3828.6,2.6119208]
[1761881600087,12.03132908,3828.7,3828.2,0.001]
[1761881600299,9.310275,3828.3,3828.2,0.001]
[1761881600470,9.310275,3828.3,3828.2,2.61319372]
[1761881600671,9.489475,3828.3,3828.2,2.61319372]
[1761881602120,4.770225,3828.3,3828.2,2.61319372]
[1761881602418,9.489475,3828.3,3828.2,2.61319372]
[1761881603190,0.5482,3828.3,3828.2,2.61319372]
[1761881603408,9.310275,3828.3,3828.2,2.61319372]
[1761881603606,0.00200001,3828.7,3828.6,2.6119208]
[1761881603810,9.12247501,3828.7,3828.6,2.6119208]
[1761881603971,10.12477108,3828.7,3828.5,2.61198902]
[1761881604290,9.120475,3828.3,3828.2,2.61319372]
[1761881605909,0.1792,3828.3,3828.2,2.61319372]
[1761881606113,4.733558,3828.3,3828.2,2.61319372]
[1761881606274,9.120475,3828.3,3828.2,2.61319372]
[1761881609019,2.708632,3828.3,3828.2,2.61319372]
[1761881609321,0.1792,3828.3,3828.2,2.61319372]
[1761881609480,0.00200001,3828.7,3828.6,2.6119208]
[1761881609680,10.34295501,3828.7,3828.6,2.6119208]
[1761881609882,8.94327501,3828.7,3828.6,3.5577208]
[1761881610123,8.94327501,3828.7,3828.6,4.17730598]
[1761881610321,0.00200001,3828.7,3828.6,4.17730598]
[1761881610536,8.94327501,3828.7,3828.6,4.17730598]
[1761881610738,0.00200001,3828.7,3828.6,4.17730598]
[1761881611708,0.00200001,3828.7,3828.6,4.20342518]
[1761881613496,0.00200001,3828.7,3828.6,4.17730598]
[1761881614729,0.00200001,3828.7,3828.6,3.70840598]
[1761881615329,0.00200001,3828.7,3828.6,4.17730598]
[1761881619514,0.00200001,3828.7,3828.6,4.20342518]
[1761881620431,0.00200001,3828.7,3828.6,4.17730598]
[1761881624115,0.00200001,3828.7,3828.6,4.20342518]
[1761881624317,0.00200001,3828.7,3828.6,4.17730598]
[1761881625024,0.00200001,3828.7,3828.6,4.20342518]
[1761881626130,0.00200001,3828.7,3828.6,4.17730598]
[1761881626331,0.00200001,3828.7,3828.6,4.20342518]
[1761881627127,0.00200001,3828.7,3828.6,3.73452518]
[1761881627310,0.00200001,3828.7,3828.6,4.20342518]
[1761881628040,0.01,3829.7,3828.6,4.20342518]
[1761881628041,0.01,3829.7,3829.6,2.61123877]
[1761881628245,8.951275,3829.7,3829.6,3.08813877]
[1761881628532,0.01,3829.7,3829.6,3.08813877]
[1761881628733,0.01,3829.7,3829.6,3.55703877]
[1761881628933,0.01,3829.7,3829.6,4.32648689]
[1761881629508,0.01,3829.7,3829.6,3.85758689]
[1761881629713,0.01,3829.7,3829.6,4.31248689]
[1761881630535,0.01,3829.7,3829.6,4.33859927]
[1761881631632,1e-08,3829.7,3829.6,4.58759089]
[1761881632510,1e-08,3829.7,3829.6,4.61370327]
[1761881632735,1e-08,3829.7,3829.6,4.58759089]
[1761881634035,1e-08,3829.7,3829.6,4.13269089]
[1761881634420,1e-08,3829.7,3829.6,4.58759089]
[1761881635114,1e-08,3829.7,3829.6,4.18208689]
[1761881635434,1e-08,3829.7,3829.6,3.72718689]
[1761881635848,1e-08,3829.7,3829.6,4.18208689]
[1761881636154,1e-08,3829.7,3829.6,3.25028689]
[1761881636361,0.17920001,3829.7,3829.6,2.61123877]
[1761881636507,0.54630001,3829.7,3829.6,2.61123877]
[1761881637202,0.17920001,3829.7,3829.6,2.61123877]
[1761881639241,1e-08,3829.7,3829.6,2.61123877]
[1761881640532,1e-08,3829.7,3829.6,3.10053877]
[1761881641060,0.17920001,3829.7,3829.6,2.61123877]
[1761881641242,9.12047501,3829.7,3829.6,2.61123877]
[1761881641426,9.48757501,3829.7,3829.6,2.61123877]
[1761881641622,9.12047501,3829.7,3829.6,2.61123877]
[1761881642564,3.39672701,3829.7,3829.6,2.61123877]
[1761881643057,2.17956401,3829.7,3829.6,2.61123877]
[1761881643261,4.44612801,3829.7,3829.6,2.61123877]
[1761881643663,4.81322801,3829.7,3829.6,2.61123877]
[1761881644165,0.54630001,3829.7,3829.6,2.61123877]
[1761881644460,9.48757501,3829.7,3829.6,2.61123877]
[1761881644637,0.1304,3829.6,3829.0,0.1304]
[1761881644821,14.85020403,3829.5,3829.4,2.61136257]
[1761881645025,9.310275,3828.7,3828.6,0.001]
[1761881645239,9.310275,3828.7,3828.6,2.61285296]
[1761881646050,8.941275,3828.8,3828.6,2.61285296]
[1761881646250,0.1304,3829.0,3828.8,3.10108437]
[1761881646586,1e-08,3829.7,3829.6,2.61123877]
[1761881646772,7.43242101,3829.7,3829.6,2.61123877]
[1761881646959,7.61162101,3829.7,3829.6,2.61123877]
[1761881647273,7.97872101,3829.7,3829.6,2.61123877]
[1761881647428,8.941275,3829.4,3828.6,0.97838661]
[1761881647760,6.257334,3829.4,3829.3,2.61144334]
[1761881647959,4.844282,3829.4,3829.3,2.61144334]
[1761881648676,1.57718,3829.4,3829.3,2.61144334]
[1761881648975,10.518455,3829.4,3829.3,2.61144334]
[1761881649654,10.887255,3829.4,3829.3,2.61144334]
[1761881649859,10.887255,3829.4,3829.2,0.001]
[1761881649860,15.39650403,3829.4,3829.2,0.001]
[1761881650071,11.8154205,3829.3,3829.2,0.001]
[1761881651285,11.8154205,3829.3,3829.2,2.61251154]
[1761881651589,11.8154205,3829.3,3829.2,0.001]
[1761881652178,11.8154205,3829.3,3829.2,2.61251154]
[1761881652782,11.8154205,3829.3,3829.2,0.001]
[1761881653355,11.8154205,3829.3,3829.2,2.61251154]
[1761881653958,11.8154205,3829.3,3828.6,0.001]
[1761881653959,8.941275,3829.1,3828.6,0.001]
[1761881654259,8.941275,3829.1,3828.2,0.001]
[1761881654260,8.941275,3828.6,3828.2,0.001]
[1761881654484,8.941275,3828.0,3827.1,2.62293324]
[1761881654756,10.636655,3827.9,3827.3,2.6128003]
[1761881654971,11.005655,3827.9,3827.3,2.6128003]
[1761881655156,11.005655,3827.9,3827.1,0.01]
[1761881655360,11.31138705,3827.9,3827.1,0.01]
[1761881655560,11.005655,3827.9,3827.4,2.61273468]
[1761881655987,10.636655,3827.9,3827.4,2.61273468]
[1761881656187,10.636655,3827.9,3827.1,2.62293585]
[1761881656188,10.636655,3827.9,3827.8,2.61346669]
[1761881656499,5.298696,3827.9,3827.8,3.07846669]
[1761881656703,5.298696,3827.9,3827.8,2.61346669]
[1761881656899,10.340955,3827.9,3827.8,2.61346669]
[1761881657199,10.520155,3827.9,3827.8,2.61346669]
[1761881657365,10.340955,3827.9,3827.8,2.61346669]
[1761881658296,10.520155,3827.9,3827.8,2.61346669]
[1761881658497,10.643655,3827.9,3827.8,0.001]
[1761881658666,10.643655,3827.9,3827.8,2.61346669]
[1761881659505,10.643655,3827.9,3827.8,0.001]
[1761881659805,1.70238,3827.9,3827.8,2.61346669]
[1761881660005,10.643655,3827.9,3827.8,2.61346669]
[1761881660299,3.673293,3827.9,3827.8,2.61346669]
[1761881660503,3.494093,3827.9,3827.8,2.61346669]
[1761881660905,3.494093,3827.9,3827.8,3.06416669]
[1761881661716,0.1219,3828.7,3828.6,2.6119208]
[1761881661873,4.27128,3828.7,3828.6,2.6119208]
[1761881662073,4.45048,3828.7,3828.6,2.6119208]
[1761881662382,6.25977499,3828.7,3828.6,2.6119208]
[1761881662884,10.43522099,3828.7,3828.6,2.6119208]
[1761881663083,10.61442099,3828.7,3828.6,2.6119208]
[1761881663936,6.85689099,3828.7,3828.6,2.6119208]
[1761881664426,0.00200001,3829.7,3829.2,2.61149467]
[1761881664427,0.37100001,3829.7,3829.2,2.61149467]
[1761881664713,0.4095878,3829.2,3828.8,0.4507]
[1761881664927,1.39968,3829.1,3829.0,2.61164794]
[1761881665224,10.340955,3829.1,3829.0,2.61164794]
[1761881667337,10.342955,3829.1,3829.0,2.61164794]
[1761881667487,10.522155,3829.1,3829.0,2.61164794]
[1761881668208,8.868638,3829.1,3829.0,3.06234794]
[1761881668403,5.049435,3829.1,3829.0,3.06234794]
[1761881669325,7.996988,3829.1,3829.0,3.06234794]
[1761881669516,6.996988,3829.1,3829.0,3.06234794]
[1761881669684,1.40168,3829.1,3829.0,3.08846441]
[1761881670422,1.53208,3829.1,3829.0,3.08846441]
[1761881670635,1.53208,3829.1,3829.0,3.06234794]
[1761881670941,7.889144,3829.1,3829.0,3.06234794]
[1761881671247,8.258144,3829.1,3829.0,2.61164794]
[1761881671700,8.66769097,3829.1,3829.0,2.61164794]
[1761881671900,11.25190197,3829.1,3829.0,2.61164794]
[1761881672102,2.31062697,3829.1,3829.0,2.61164794]
[1761881672301,1.94162697,3829.1,3829.0,2.61164794]
[1761881672634,1.53208,3829.1,3829.0,3.06234794]
[1761881672936,1.53208,3829.1,3829.0,4.12387082]
[1761881676024,0.002,3829.1,3829.0,4.12387082]
[1761881676340,0.002,3829.1,3829.0,4.25427082]
[1761881677434,0.002,3829.1,3829.0,4.22815435]
[1761881680225,0.002,3829.1,3829.0,4.25427082]
[1761881680528,0.002,3829.1,3829.0,4.22815435]
[1761881685520,0.002,3829.1,3829.0,3.76015435]
[1761881686144,0.002,3829.1,3829.0,4.25427082]
[1761881687166,0.1235,3829.9,3829.7,2.61117058]
[1761881687447,0.1235,3829.9,3829.8,2.6111024]
[1761881687868,5.886273,3829.9,3829.8,2.6111024]
[1761881688081,6.4749003,3829.9,3829.8,2.6111024]
[1761881688268,6.4749003,3829.9,3828.8,0.6491]
[1761881688269,8.941275,3829.7,3828.8,0.6491]
[1761881688581,1.39968,3829.8,3829.1,2.61157974]
[1761881688582,3.275478,3829.2,3829.1,2.61157974]
[1761881689985,1.39968,3829.7,3829.6,2.61123877]
[1761881690146,3.835632,3829.7,3829.6,2.61123877]
[1761881690342,3.835632,3829.7,3829.6,3.09053877]
[1761881690545,3.835632,3829.7,3829.6,2.61123877]
[1761881690854,4.014832,3829.7,3829.6,2.61123877]
[1761881691053,1.57888,3829.7,3829.6,2.61123877]
[1761881691259,5.669417,3829.7,3829.6,2.61123877]
[1761881691450,5.407811,3829.7,3829.6,2.61123877]
[1761881692046,6.407811,3829.7,3829.6,2.61123877]
[1761881693079,10.520155,3829.7,3829.6,2.61123877]
[1761881696651,3.887912,3829.7,3829.6,2.61123877]
[1761881696851,1.39968,3829.7,3829.6,2.61123877]
[1761881697084,3.423473,3829.7,3829.6,2.61123877]
[1761881697248,3.421525,3829.7,3829.6,2.61123877]
[1761881697453,1.39968,3829.7,3829.6,2.61123877]
[1761881697764,3.421525,3829.7,3829.6,2.61123877]
[1761881698152,8.65788,3829.7,3829.6,2.61123877]
[1761881698351,8.008085,3829.7,3829.6,2.61123877]
[1761881699365,8.139802,3829.7,3829.6,2.61123877]
[1761881700252,1.58078,3829.7,3829.6,2.61123877]
[1761881700586,10.522055,3829.7,3829.6,2.61123877]
[1761881701485,8.941275,3829.6,3829.5,2.61130695]
[1761881701883,9.487575,3829.6,3829.5,2.61130695]
[1761881702389,0.40947889,3830.4,3830.3,2.61076155]
[1761881702686,5.23063889,3830.4,3830.3,2.61076155]
[1761881702890,5.40983889,3830.4,3830.3,2.61076155]
[1761881703190,5.69094706,3830.4,3830.3,2.61076155]
[1761881703369,6.05804706,3830.4,3830.3,2.61076155]
[1761881703570,8.941275,3830.2,3829.3,2.74179712]
[1761881703781,10.340955,3830.0,3829.9,2.61103423]
[1761881704101,10.471355,3830.0,3829.9,2.61103423]
[1761881704302,11.42902103,3830.0,3829.9,2.61103423]
[1761881704654,11.24982103,3830.0,3829.9,2.61103423]
[1761881705156,5.58102803,3830.0,3829.9,2.61103423]
[1761881705557,8.99810403,3830.0,3829.9,2.61103423]
[1761881706170,5.96246003,3830.0,3829.9,2.61103423]
[1761881706492,1.93954603,3830.0,3829.9,2.61103423]
[1761881706995,1.93954603,3830.0,3829.9,3.58473423]
[1761881707157,0.002,3830.6,3830.5,2.61062524]
[1761881707360,0.002,3830.6,3830.5,3.28362524]
[1761881707361,8.943275,3830.6,3830.5,3.28362524]
[1761881708091,8.943275,3830.6,3830.5,3.77802524]
[1761881708092,0.002,3830.6,3830.5,3.77802524]
[1761881708280,1.39968,3830.3,3830.2,2.61082972]
[1761881708482,5.855452,3830.3,3830.2,2.61082972]
[1761881708694,10.706255,3830.3,3830.2,2.61082972]
[1761881710467,9.560911,3830.3,3830.2,2.61082972]
[1761881710797,9.716615,3830.3,3830.2,2.61082972]
[1761881711662,10.706255,3830.3,3830.2,2.61082972]
[1761881712691,10.041338,3830.3,3830.2,2.61082972]
[1761881712893,5.838762,3830.3,3830.2,2.61082972]
[1761881713470,5.838762,3830.3,3830.2,3.09012972]
[1761881713678,1.39968,3830.3,3830.2,3.58452972]
[1761881713996,1.39968,3830.3,3830.2,4.20668639]
[1761881714201,0.41143765,3830.6,3830.5,2.61062524]
[1761881714388,0.002,3830.6,3830.5,3.11603149]
[1761881714706,0.002,3831.1,3831.0,2.61028452]
[1761881714914,0.002,3831.1,3831.0,3.49508852]
[1761881715078,0.002,3831.1,3831.0,4.62874859]
[1761881715406,0.01,3831.7,3831.6,3.01537976]
[1761881715587,0.01,3831.7,3831.6,3.49467976]
[1761881715811,0.01,3831.7,3831.6,3.98907976]
[1761881716719,0.002,3832.5,3832.0,2.60960334]
[1761881717019,0.002,3832.5,3832.0,3.6220297]
[1761881717219,0.002,3832.5,3832.0,4.0870297]
[1761881718586,0.002,3832.5,3832.0,4.4925337]
[1761881720708,0.002,3832.5,3832.0,4.46643767]
[1761881720911,0.002,3832.5,3832.0,4.4925337]
[1761881721515,0.002,3833.1,3832.4,3.67813496]
[1761881721716,0.002,3833.1,3833.0,3.09102251]
[1761881721891,0.002,3833.1,3833.0,3.60571173]
[1761881722224,0.002,3833.1,3833.0,4.11552651]
[1761881722924,0.002,3833.1,3833.0,4.14161573]
[1761881725194,0.002,3833.1,3833.0,4.11552651]
[1761881725431,0.002,3833.1,3833.0,4.78798105]
[1761881725794,0.002,3833.1,3833.0,3.89387705]
[1761881725998,0.002,3833.1,3833.0,3.22142251]
[1761881727231,0.002,3833.1,3833.0,3.71002251]
[1761881728142,0.002,3833.1,3833.0,3.22142251]
[1761881728497,0.002,3833.1,3833.0,3.73611173]
[1761881728698,0.002,3833.1,3833.0,4.01121573]
[1761881728997,0.002,3833.1,3833.0,4.8036392]
[1761881731251,1e-08,3833.5,3833.4,2.60865028]
[1761881731451,1e-08,3833.5,3833.4,3.70354078]
[1761881731657,1e-08,3833.5,3833.4,4.32254078]
[1761881731847,1e-08,3833.5,3833.4,5.01566918]
[1761881733233,1e-08,3833.5,3833.4,4.09547868]
[1761881733438,1e-08,3833.5,3833.4,3.22115028]
[1761881735739,1e-08,3833.5,3833.4,3.70975028]
[1761881736267,1e-08,3833.5,3833.4,3.73583678]
[1761881736683,1e-08,3833.5,3833.4,4.14134078]
[1761881740307,1e-08,3833.7,3833.6,3.49611819]
[1761881740499,1e-08,3833.7,3833.6,3.52220333]
[1761881740809,1e-08,3833.7,3833.6,4.14120333]
[1761881743475,1e-08,3834.1,3834.0,3.49584604]
[1761881743677,0.381,3835.7,3834.8,2.60769792]
[1761881744000,0.1316,3835.5,3834.8,3.08979792]
[1761881744525,0.1316,3835.5,3834.8,3.21939792]
[1761881744700,0.1316,3835.5,3834.8,3.24547489]
[1761881745024,0.1316,3835.5,3834.8,3.73407489]
[1761881746215,1e-08,3835.0,3834.9,3.49523392]
[1761881746405,1e-08,3835.0,3834.9,4.4151705]
[1761881747419,1e-08,3835.0,3834.9,4.9037705]
[1761881751723,1e-08,3835.0,3834.9,4.92984679]
[1761881754552,1e-08,3835.0,3834.9,4.9037705]
[1761881758858,1e-08,3835.0,3834.9,4.9021705]
[1761881759364,1e-08,3835.0,3834.9,9.80508867]
[1761881760637,0.1275,3835.9,3834.9,9.80508867]
[1761881760638,0.371,3837.1,3836.6,2.60647448]
[1761881760880,0.371,3836.9,3836.6,2.60647448]
[1761881761084,0.1872,3836.7,3836.6,2.63253922]
[1761881761288,0.1872,3836.7,3836.6,2.60647448]
[1761881761648,0.1872,3836.7,3836.6,2.73607448]
[1761881762194,0.01,3837.7,3837.0,2.60620276]
[1761881762363,0.01,3837.7,3837.6,2.60579528]
[1761881762364,0.381,3837.7,3837.6,2.60579528]
[1761881762760,0.1872,3837.7,3837.6,2.60579528]
[1761881762963,0.1872,3837.7,3837.6,2.63185323]
[1761881763300,0.01,3837.7,3837.6,3.56215331]
[1761881763451,0.01,3837.7,3837.6,4.46405731]
[1761881763645,0.01,3838.7,3837.6,4.05855163]
[1761881763646,5.890655,3838.5,3837.6,4.05855163]
[1761881763881,0.01,3838.7,3837.6,4.05855163]
[1761881763882,0.1772,3837.7,3837.6,3.0112976]
[1761881764386,10.340955,3838.6,3838.5,2.60518431]
[1761881764984,10.889155,3838.6,3838.5,2.60518431]
[1761881765983,1.94788,3838.6,3838.5,2.60518431]
[1761881766979,5.140829,3838.6,3838.5,2.60518431]
[1761881767159,5.140829,3838.6,3838.3,2.60532006]
[1761881767160,10.340955,3838.4,3838.3,2.60532006]
[1761881767496,10.342755,3838.4,3838.3,2.60532006]
[1761881767793,10.713755,3838.4,3838.3,2.60532006]
[1761881768298,1.77248,3838.4,3838.3,2.60532006]
[1761881768790,1.40148,3838.4,3838.3,2.60532006]
[1761881769569,9.153665,3838.4,3838.3,2.60532006]
[1761881769753,8.013086,3838.3,3837.2,0.405504]
[1761881770070,8.384086,3838.3,3838.2,2.60538794]
[1761881770384,5.944118,3838.3,3838.2,2.60538794]
[1761881770683,6.036908,3838.3,3838.2,2.60538794]
[1761881770887,5.744339,3838.3,3838.2,2.60538794]
[1761881771056,4.862537,3838.3,3838.2,2.60538794]
[1761881771654,9.489475,3838.3,3838.2,2.60538794]
[1761881772684,0.371,3838.3,3838.2,2.60538794]
[1761881772984,3.944331,3838.3,3838.2,2.60538794]
[1761881773217,0.371,3838.3,3838.2,3.10178794]
[1761881773362,0.002,3838.6,3838.5,2.60518431]
[1761881773550,0.002,3838.6,3838.5,2.63123615]
[1761881773765,0.1792,3838.6,3838.5,2.63123615]
[1761881774066,0.1792,3838.6,3838.5,2.60518431]
[1761881774254,0.1792,3838.6,3838.5,3.46622605]
[1761881774450,0.1792,3838.6,3838.5,3.44017421]
[1761881774657,0.5482,3838.6,3838.5,2.60518431]
[1761881774865,3.86931,3838.6,3838.5,2.60518431]
[1761881775306,0.002,3838.6,3838.5,2.63123615]
[1761881775596,0.002,3838.6,3838.5,3.03674015]
[1761881775934,1e-08,3838.7,3838.6,2.60511644]
[1761881776100,1e-08,3838.7,3838.6,3.99402044]
[1761881777105,1e-08,3838.7,3838.6,5.39370044]
[1761881779314,0.01,3840.7,3838.6,5.39370044]
[1761881779315,0.01,3840.7,3839.3,0.1993]
[1761881779465,0.01,3840.7,3840.6,3.00926382]
[1761881779666,0.01,3840.7,3840.6,3.03530141]
[1761881779874,0.1872,3840.7,3840.6,3.00926382]
[1761881780281,0.01,3840.7,3840.6,3.00926382]
[1761881780919,0.01,3840.7,3840.6,3.47026382]
[1761881781072,0.01,3840.7,3840.6,3.6166767]
[1761881781582,0.01,3840.7,3840.6,3.64271429]
[1761881781782,0.01,3840.7,3840.6,3.6166767]
[1761881782217,0.01,3840.7,3840.6,4.0776767]
[1761881782366,0.3091,3840.7,3840.6,3.2111727]
[1761881782570,0.3091,3840.7,3839.7,0.4502]
[1761881782805,0.0037,3840.5,3840.4,2.60389542]
[1761881783316,0.0037,3840.5,3840.4,2.73349542]
[1761881783720,0.0037,3840.5,3840.4,2.75953437]
[1761881783910,0.1319,3840.7,3840.6,2.60375982]
[1761881784219,0.1319,3840.7,3840.6,2.62979741]
[1761881784418,0.01,3840.7,3840.6,4.45679324]
[1761881784622,0.01,3840.7,3840.6,4.61243083]
[1761881785205,0.01,3840.7,3840.6,4.58639324]
[1761881785843,0.01,3840.7,3840.6,4.61243083]
[1761881786132,0.01,3840.7,3840.6,4.58639324]
[1761881786644,1e-08,3841.7,3841.6,2.60308204]
[1761881786951,6.66357601,3841.7,3841.6,2.60308204]
[1761881787105,7.21177601,3841.7,3840.7,3.00917504]
[1761881787290,0.0018,3841.3,3840.9,0.405504]
[1761881787491,0.0018,3841.3,3841.2,2.60335311]
[1761881787690,0.371,3841.3,3841.2,2.60335311]
[1761881788004,0.5482,3841.3,3841.2,2.60335311]
[1761881788928,0.1772,3841.3,3841.2,2.60335311]
[1761881789129,9.487475,3841.3,3840.1,0.188]
[1761881789440,9.487475,3841.3,3840.9,2.60354473]
[1761881789441,0.0037,3841.1,3840.9,2.60354473]
[1761881789646,4.395911,3841.0,3839.8,2.60427433]
[1761881789942,2.794658,3840.9,3840.7,2.60367143]
[1761881790110,0.4929,3840.9,3840.7,2.60367143]
[1761881790309,0.4929,3840.9,3839.3,0.6495]
[1761881790310,7.44632,3840.7,3839.3,0.6495]
[1761881790616,0.0037,3840.5,3840.4,2.60389542]
[1761881790802,0.0037,3840.5,3839.6,0.001]
[1761881790803,7.208957,3840.4,3839.6,0.001]
[1761881791028,0.1736,3840.2,3840.1,2.60409885]
[1761881791347,0.1736,3840.2,3839.6,0.001]
[1761881791542,0.371,3839.7,3839.6,2.60543796]
[1761881793845,0.40836668,3840.7,3839.6,1.00914178]
[1761881794148,1.39968,3840.7,3840.0,0.461]
[1761881794307,10.30616,3840.9,3840.8,2.60362424]
[1761881794508,10.30616,3840.9,3839.8,2.6043023]
[1761881794509,8.056265,3840.7,3839.8,2.6043023]
[1761881794709,0.4945,3839.9,3839.8,2.6043023]
[1761881794911,3.500987,3840.5,3839.6,0.001]
[1761881795219,0.371,3840.5,3840.4,2.60389542]
[1761881795420,1.39968,3840.5,3840.4,2.60389542]
[1761881795626,1.57688,3840.5,3840.4,2.60389542]
[1761881795813,0.1219,3840.9,3840.8,2.60362424]
[1761881796207,0.6681,3840.9,3840.8,2.60362424]
[1761881796412,6.751863,3840.9,3840.8,2.60362424]
[1761881796660,11.009055,3840.9,3840.8,2.60362424]
[1761881796844,7.053121,3840.9,3840.8,2.60362424]
[1761881797229,5.17081,3840.9,3840.8,2.60362424]
[1761881797434,8.941275,3840.7,3840.3,0.1296]
[1761881797650,0.371,3840.4,3840.3,2.60396323]
[1761881798022,0.5482,3840.4,3840.3,2.60396323]
[1761881798843,7.859117,3840.4,3840.3,2.60396323]
[1761881799041,7.859117,3840.4,3840.2,2.60403104]
[1761881799042,2.488863,3840.3,3840.2,2.60403104]
[1761881799242,3.037063,3840.3,3840.2,2.60403104]
[1761881799651,3.037063,3840.3,3840.0,2.60416666]
[1761881799856,3.037063,3840.3,3839.9,7.08124592]
[1761881799857,0.0018,3840.0,3839.9,7.08124592]
[1761881800220,0.3728,3840.0,3839.9,7.08124592]
[1761881800420,9.314075,3840.0,3839.9,7.08124592]
[1761881800729,10.713755,3840.0,3839.9,7.08124592]
[1761881800943,11.7980905,3840.0,3839.9,7.08124592]
[1761881803718,14.40225716,3840.0,3839.9,7.08124592]
[1761881804524,5.46098216,3840.0,3839.9,7.08124592]
[1761881804724,20.45093611,3840.0,3839.9,7.08124592]
[1761881804924,20.85644011,3840.0,3839.9,7.08124592]
[1761881805128,21.16217216,3840.0,3839.9,7.08124592]
[1761881807728,9.5713225,3840.0,3839.9,7.08124592]
[1761881808565,12.17548916,3840.0,3839.9,7.08124592]
[1761881808866,14.40225716,3840.0,3839.9,7.08124592]
[1761881809022,11.7980905,3840.0,3839.9,7.08124592]
[1761881810053,14.40225716,3840.0,3839.9,7.08124592]
[1761881810651,15.18553572,3840.0,3839.9,7.08124592]
[1761881811052,16.30526133,3840.0,3839.9,7.08124592]
[1761881814894,16.30526133,3840.0,3839.9,6.67324592]
[1761881815989,16.30526133,3840.0,3839.9,1.46484477]
[1761881816307,16.30526133,3840.0,3839.8,0.001]
[1761881816308,4.40941848,3839.9,3839.8,0.001]
[1761881816592,15.64804438,3839.9,3839.8,0.001]
[1761881818189,15.34231233,3839.9,3839.8,0.001]
[1761881819968,13.53712833,3839.9,3839.8,0.001]
[1761881820170,9.110475,3839.9,3839.8,0.001]
[1761881820378,10.880955,3839.9,3839.8,0.001]
[1761881820581,13.48518948,3839.9,3839.8,0.001]
[1761881820797,4.67371448,3839.9,3839.8,0.001]
[1761881821111,13.48518948,3839.9,3839.8,0.001]
[1761881822765,13.89069348,3839.9,3839.8,0.001]
[1761881822964,14.19642553,3839.9,3839.8,0.001]
[1761881823271,14.60509948,3839.9,3839.8,0.001]
[1761881823807,5.79362448,3839.9,3839.8,0.001]
[1761881823989,14.60509948,3839.9,3839.8,0.001]
[1761881825397,14.70954289,3839.9,3839.8,0.001]
[1761881826114,14.70954289,3839.9,3839.6,0.001]
[1761881826115,3.00987413,3839.7,3839.6,0.001]
[1761881826297,13.22472913,3839.7,3839.6,0.001]
[1761881826610,13.90146118,3839.7,3839.6,0.001]
[1761881826777,11.41598079,3839.5,3839.4,0.001]
[1761881827117,13.58978345,3839.5,3839.4,0.001]
[1761881827324,13.96078345,3839.5,3839.4,0.001]
[1761881827785,13.66599284,3839.5,3839.4,0.001]
[1761881828637,14.07149684,3839.5,3839.4,0.001]
[1761881828897,5.26002184,3839.5,3839.4,0.001]
[1761881829067,14.07149684,3839.5,3839.4,0.001]
[1761881830506,20.56149684,3839.5,3839.4,0.001]
[1761881836559,16.701155,3839.5,3839.4,0.001]
[1761881836754,16.701155,3839.5,3839.4,0.4722]
[1761881837124,15.301475,3839.5,3839.4,0.4722]
[1761881837314,20.80995307,3839.5,3839.4,0.4722]
[1761881837511,22.20963307,3839.5,3839.4,0.4722]
[1761881837940,24.81413886,3839.5,3839.4,0.4722]
[1761881839457,19.30566079,3839.5,3839.4,0.001]
[1761881840144,19.30566079,3839.5,3839.4,0.4722]
[1761881840342,16.701155,3839.5,3839.4,0.4722]
[1761881840947,19.30566079,3839.5,3839.4,0.4722]
[1761881841307,19.48286079,3839.5,3839.4,0.001]
[1761881841506,21.41342687,3839.5,3839.4,0.001]
[1761881841924,21.23622687,3839.5,3839.4,0.001]
[1761881842243,21.23622687,3839.5,3839.4,0.4851]
[1761881842749,21.23622687,3839.5,3839.4,0.001]
[1761881844144,21.41342687,3839.5,3839.4,0.001]
[1761881845559,18.63172108,3839.5,3839.4,0.001]
[1761881845717,21.23622687,3839.5,3839.4,0.001]
[1761881846546,18.63172108,3839.5,3839.4,0.4851]